fUSD/lending_fUSD_20260506
["ID","MTS","AMOUNT","RATE_DAILY","PERIOD"]
[421667561,1778035855000,-1000.0,0.000314,7]
[421667562,1778035855000,-500.0,0.00031409,2]
[421667564,1778035855000,-157.0,0.00031483,3]
[421667569,1778035855000,-164.56,0.00031557,60]
[421667570,1778035855000,-164.56,0.00031557,60]
[421667560,1778035855000,-160.0,0.000314,45]
[421667567,1778035855000,-2000.0,0.00031507,30]
[421667568,1778035855000,-1062.61,0.00031545,30]
[421667565,1778035855000,-515.45,0.000315,7]
[421667571,1778035855000,-164.55,0.00031557,60]
[421667572,1778035855000,-200.0,0.00031637,2]
[421667573,1778035855000,-2269.47,0.00031642,2]
[421667577,1778035855000,-158.63990247,0.00031781,30]
[421667576,1778035855000,-2000.0,0.00031781,30]
[421667574,1778035855000,-200.0,0.00031679,2]
[421667556,1778035855000,-198.0,0.00031318,30]
[421667575,1778035855000,-1062.61,0.00031727,30]
[421667566,1778035855000,-265.0,0.00031507,30]
[421667557,1778035855000,-202.0,0.00031318,30]
[421667534,1778035855000,-200.0,0.00030438,2]
[421667563,1778035855000,-693.3919763,0.00031467,2]
[421667579,1778035855000,-1216.30474067,0.0003185,2]
[421667538,1778035855000,-10015.53395039,0.00031,120]
[421667536,1778035855000,-200.0,0.00030743,2]
[421667539,1778035855000,-207.86895535,0.00031,120]
[421667537,1778035855000,-200.0,0.00030826,2]
[421667531,1778035855000,-150.0,0.00030425,2]
[421667532,1778035855000,-6043.0,0.00030425,2]
[421667533,1778035855000,-200.0,0.00030437,2]
[421667530,1778035855000,-262.345,0.00030425,2]
[421667529,1778035855000,-1221.0,0.00030425,2]
[421667535,1778035855000,-200.0,0.00030737,2]
[421667541,1778035855000,-1062.61,0.00031,30]
[421667543,1778035855000,-200.0,0.00031037,2]
[421667540,1778035855000,-160.0,0.00031,120]
[421667542,1778035855000,-150.0,0.00031011,2]
[421667551,1778035855000,-394.0,0.00031315,30]
[421667549,1778035855000,-177.0,0.00031315,30]
[421667550,1778035855000,-305.0,0.00031315,30]
[421667547,1778035855000,-24769.0,0.000313,2]
[421667545,1778035855000,-506.0,0.00031142,6]
[421667544,1778035855000,-200.0,0.0003105,2]
[421667546,1778035855000,-1062.61,0.00031182,30]
[421667548,1778035855000,-395.0,0.00031315,30]
[421667553,1778035855000,-385.0,0.00031318,30]
[421667578,1778035855000,-1216.30474069,0.0003185,2]
[421667586,1778035855000,-645.96735422,0.00032,120]
[421667587,1778035855000,-312.00772031,0.00032,120]
[421667618,1778035855000,-506.0,0.00032744,8]
[421667614,1778035855000,-254.44,0.000326,14]
[421667613,1778035855000,-150.0,0.00032562,2]
[421667612,1778035855000,-200.0,0.00032537,2]
[421667611,1778035855000,-1062.61,0.00032455,30]
[421667610,1778035855000,-160.0,0.000324,49]
[421667609,1778035855000,-2000.0,0.00032329,30]
[421667619,1778035855000,-1880.16398452,0.000328,120]
[421667617,1778035855000,-5529.0,0.000327,5]
[421667620,1778035855000,-515.45,0.000328,7]
[421667616,1778035855000,-1062.61,0.00032636,30]
[421667615,1778035855000,-2000.0,0.00032603,30]
[421667623,1778035855000,-707.1895,0.00032867,120]
[421667624,1778035855000,-500.0,0.00032876,120]
[421667626,1778035855000,-500.0,0.00032876,2]
[421667627,1778035855000,-500.0,0.00032876,120]
[421667631,1778035855000,-304.657235,0.00032877,7]
[421667625,1778035855000,-359.02419726,0.00032876,120]
[421667628,1778035855000,-513.87,0.00032876,7]
[421667630,1778035855000,-304.657235,0.00032877,7]
[421667622,1778035855000,-200.0,0.00032837,2]
[421667629,1778035855000,-304.657235,0.00032877,7]
[421667580,1778035855000,-1216.30474067,0.0003185,2]
[421667605,1778035855000,-153.0,0.00032318,30]
[421667602,1778035855000,-394.0,0.00032315,30]
[421667621,1778035855000,-1062.61,0.00032818,30]
[421667603,1778035855000,-1179.0,0.00032315,30]
[421667608,1778035855000,-202.0,0.00032318,30]
[421667581,1778035855000,-78194.19,0.000319,7]
[421667583,1778035855000,-200.0,0.00031937,2]
[421667584,1778035855000,-506.0,0.00031943,7]
[421667582,1778035855000,-1062.61,0.00031909,30]
[421667585,1778035855000,-465.45073713,0.00032,120]
[421667632,1778035855000,-304.657235,0.00032877,7]
[421667590,1778035855000,-1181.11329958,0.00032,120]
[421667588,1778035855000,-6726.50340421,0.00032,120]
[421667592,1778035855000,-2000.0,0.00032055,30]
[421667594,1778035855000,-2414.6,0.0003221,5]
[421667589,1778035855000,-5753.72912657,0.00032,120]
[421667599,1778035855000,-395.0,0.00032315,30]
[421667593,1778035855000,-1062.61,0.00032091,30]
[421667595,1778035855000,-200.0,0.00032237,2]
[421667597,1778035855000,-1436.07393916,0.00032277,2]
[421667596,1778035855000,-1062.61,0.00032273,30]
[421667598,1778035855000,-151.01006351,0.00032305,2]
[421667600,1778035855000,-177.0,0.00032315,30]
[421667601,1778035855000,-305.0,0.00032315,30]
[421667606,1778035855000,-536.0,0.00032318,30]
[421667607,1778035855000,-198.0,0.00032318,30]
[421667591,1778035855000,-5529.0,0.00032,3]
[421667604,1778035855000,-385.0,0.00032318,30]
[421667649,1778035856000,-151.0,0.00032877,7]
[421667650,1778035856000,-162.383069,0.00032877,7]
[421667661,1778035856000,-318.019443,0.00032877,7]
[421667654,1778035856000,-318.019443,0.00032877,7]
[421667651,1778035856000,-318.019443,0.00032877,7]
[421667653,1778035856000,-318.019443,0.00032877,7]
[421667660,1778035856000,-318.019443,0.00032877,7]
[421667655,1778035856000,-318.019443,0.00032877,7]
[421667659,1778035856000,-356.97,0.00032877,2]
[421667657,1778035856000,-318.019443,0.00032877,7]
[421667645,1778035856000,-304.657235,0.00032877,7]
[421667652,1778035856000,-318.019443,0.00032877,7]
[421667647,1778035856000,-304.657235,0.00032877,7]
[421667644,1778035856000,-304.657235,0.00032877,7]
[421667646,1778035856000,-304.657235,0.00032877,7]
[421667635,1778035856000,-304.657235,0.00032877,7]
[421667643,1778035856000,-304.657235,0.00032877,7]
[421667641,1778035856000,-304.657235,0.00032877,7]
[421667633,1778035856000,-304.657235,0.00032877,7]
[421667639,1778035856000,-304.657235,0.00032877,7]
[421667634,1778035856000,-304.657235,0.00032877,7]
[421667640,1778035856000,-304.657235,0.00032877,7]
[421667636,1778035856000,-304.657235,0.00032877,7]
[421667642,1778035856000,-304.657235,0.00032877,7]
[421667638,1778035856000,-304.657235,0.00032877,7]
[421667637,1778035856000,-304.657235,0.00032877,7]
[421667662,1778035856000,-318.019443,0.00032877,7]
[421667648,1778035856000,-304.657228,0.00032877,7]
[421667656,1778035856000,-318.019443,0.00032877,7]
[421667658,1778035856000,-318.019443,0.00032877,7]
[421667663,1778035856000,-318.019443,0.00032877,7]
[421667686,1778035856000,-1062.61,0.00033,30]
[421667664,1778035856000,-318.019443,0.00032877,7]
[421667691,1778035856000,-395.0,0.00033315,30]
[421667688,1778035856000,-4000.0,0.00033151,60]
[421667693,1778035856000,-305.0,0.00033315,30]
[421667687,1778035856000,-350.0,0.00033137,2]
[421667690,1778035856000,-2377.69962328,0.00033312,120]
[421667689,1778035856000,-500.0,0.00033287,120]
[421667685,1778035856000,-1181.11329958,0.00033,120]
[421667684,1778035856000,-5753.72912657,0.00033,120]
[421667683,1778035856000,-6726.50340421,0.00033,120]
[421667682,1778035856000,-312.00772031,0.00033,120]
[421667681,1778035856000,-645.96735422,0.00033,120]
[421667679,1778035856000,-4000.0,0.00032877,60]
[421667680,1778035856000,-465.45073713,0.00033,120]
[421667692,1778035856000,-177.0,0.00033315,30]
[421667678,1778035856000,-806.42,0.00032877,2]
[421667677,1778035856000,-229.76505251,0.00032877,2]
[421667666,1778035856000,-318.019443,0.00032877,7]
[421667665,1778035856000,-318.019443,0.00032877,7]
[421667667,1778035856000,-318.019443,0.00032877,7]
[421667669,1778035856000,-318.019443,0.00032877,7]
[421667671,1778035856000,-318.019443,0.00032877,7]
[421667668,1778035856000,-318.019443,0.00032877,7]
[421667674,1778035856000,-500.0,0.00032877,2]
[421667672,1778035856000,-500.0,0.00032877,2]
[421667673,1778035856000,-500.0,0.00032877,2]
[421667676,1778035856000,-500.0,0.00032877,2]
[421667675,1778035856000,-500.0,0.00032877,2]
[421667670,1778035856000,-318.019443,0.00032877,7]
[421667732,1778035857000,-510.8519362,0.00034096,60]
[421667730,1778035857000,-756.5324272,0.00034096,60]
[421667727,1778035857000,-250.0,0.00034052,7]
[421667735,1778035857000,-500.0,0.00034096,60]
[421667738,1778035857000,-500.0,0.00034096,60]
[421667728,1778035857000,-157.0,0.00034092,3]
[421667724,1778035857000,-1426.61977397,0.00033978,120]
[421667726,1778035857000,-250.0,0.00034052,7]
[421667733,1778035857000,-159.2064289,0.00034096,60]
[421667725,1778035857000,-160.0,0.00034,120]
[421667731,1778035857000,-420.2733582,0.00034096,60]
[421667747,1778035857000,-719.04747942,0.00034206,2]
[421667742,1778035857000,-586.0147076,0.00034096,60]
[421667737,1778035857000,-500.0,0.00034096,60]
[421667736,1778035857000,-500.0,0.00034096,60]
[421667734,1778035857000,-158.4902185,0.00034096,60]
[421667739,1778035857000,-500.0,0.00034096,60]
[421667741,1778035857000,-500.0,0.00034096,60]
[421667744,1778035857000,-2414.6,0.00034182,7]
[421667750,1778035857000,-4000.0,0.00034247,60]
[421667743,1778035857000,-500.0,0.00034109,120]
[421667740,1778035857000,-704.3748623,0.00034096,60]
[421667748,1778035857000,-150.0,0.00034247,2]
[421667746,1778035857000,-515.45,0.000342,30]
[421667723,1778035857000,-4000.0,0.00033973,60]
[421667729,1778035857000,-373.4918941,0.00034096,60]
[421667722,1778035857000,-1181.11329958,0.000339,120]
[421667708,1778035857000,-1352.0,0.00033425,2]
[421667719,1778035857000,-312.00772031,0.000339,120]
[421667745,1778035857000,-150.0,0.0003419,2]
[421667694,1778035857000,-394.0,0.00033315,30]
[421667698,1778035857000,-536.0,0.00033318,30]
[421667701,1778035857000,-151.0,0.00033397,14]
[421667702,1778035857000,-78194.19,0.000334,7]
[421667695,1778035857000,-1179.0,0.00033315,30]
[421667700,1778035857000,-202.0,0.00033318,30]
[421667703,1778035857000,-160.0,0.000334,52]
[421667696,1778035857000,-385.0,0.00033318,30]
[421667699,1778035857000,-198.0,0.00033318,30]
[421667704,1778035857000,-4000.0,0.00033425,60]
[421667697,1778035857000,-153.0,0.00033318,30]
[421667721,1778035857000,-5753.72912657,0.000339,120]
[421667705,1778035857000,-158.63990247,0.00033425,30]
[421667707,1778035857000,-624.0,0.00033425,2]
[421667709,1778035857000,-1221.0,0.00033425,2]
[421667713,1778035857000,-368.73901256,0.00033637,2]
[421667712,1778035857000,-506.0,0.00033545,9]
[421667710,1778035857000,-4957.233,0.00033425,2]
[421667715,1778035857000,-4000.0,0.00033699,60]
[421667711,1778035857000,-350.0,0.00033437,2]
[421667714,1778035857000,-500.0,0.00033698,120]
[421667716,1778035857000,-184.58,0.00033893,2]
[421667718,1778035857000,-645.96735422,0.000339,120]
[421667720,1778035857000,-6726.50340421,0.000339,120]
[421667717,1778035857000,-465.45073713,0.000339,120]
[421667706,1778035857000,-3536.0,0.00033425,2]
[421667749,1778035857000,-204.0,0.00034247,2]
[421667787,1778035857000,-514.04066889,0.00034999,7]
[421667752,1778035857000,-395.0,0.00034315,30]
[421667783,1778035857000,-513.87,0.00034999,7]
[421667781,1778035857000,-500.0,0.00034999,120]
[421667780,1778035857000,-500.0,0.00034999,120]
[421667784,1778035857000,-513.87,0.00034999,7]
[421667788,1778035857000,-465.45073713,0.00035,120]
[421667789,1778035857000,-355.95378563,0.00035,30]
[421667799,1778035857000,-1181.11329958,0.00035,120]
[421667790,1778035857000,-645.96735422,0.00035,120]
[421667791,1778035857000,-2646.65350668,0.00035,14]
[421667793,1778035857000,-19502.82352349,0.00035,120]
[421667792,1778035857000,-176756.29886975,0.00035,30]
[421667795,1778035857000,-6726.50340421,0.00035,120]
[421667785,1778035857000,-513.87,0.00034999,7]
[421667797,1778035857000,-150.0,0.00035,2]
[421667794,1778035857000,-312.00772031,0.00035,120]
[421667801,1778035857000,-214.0,0.00035,120]
[421667800,1778035857000,-78194.19,0.00035,7]
[421667809,1778035857000,-1291.071661,0.00035,7]
[421667802,1778035857000,-354.624263,0.00035,7]
[421667803,1778035857000,-354.624263,0.00035,7]
[421667804,1778035857000,-354.624263,0.00035,7]
[421667805,1778035857000,-354.624258,0.00035,7]
[421667808,1778035857000,-1291.071661,0.00035,7]
[421667806,1778035857000,-151.0,0.00035,7]
[421667807,1778035857000,-151.0,0.00035,7]
[421667751,1778035857000,-1885.06854802,0.000343,7]
[421667796,1778035857000,-5753.72912657,0.00035,120]
[421667782,1778035857000,-453.12,0.00034999,120]
[421667798,1778035857000,-180.273,0.00035,2]
[421667775,1778035857000,-500.0,0.00034999,2]
[421667755,1778035857000,-394.0,0.00034315,30]
[421667779,1778035857000,-510.6931762,0.00034999,2]
[421667753,1778035857000,-177.0,0.00034315,30]
[421667762,1778035857000,-506.0,0.00034346,9]
[421667761,1778035857000,-202.0,0.00034318,30]
[421667756,1778035857000,-1179.0,0.00034315,30]
[421667754,1778035857000,-305.0,0.00034315,30]
[421667760,1778035857000,-198.0,0.00034318,30]
[421667757,1778035857000,-385.0,0.00034318,30]
[421667759,1778035857000,-536.0,0.00034318,30]
[421667763,1778035857000,-160.0,0.000344,55]
[421667767,1778035857000,-549.23,0.00034544,60]
[421667765,1778035857000,-181.46,0.00034521,120]
[421667758,1778035857000,-153.0,0.00034318,30]
[421667778,1778035857000,-500.0,0.00034999,2]
[421667777,1778035857000,-500.0,0.00034999,2]
[421667766,1778035857000,-4000.0,0.00034521,60]
[421667786,1778035857000,-513.87,0.00034999,7]
[421667776,1778035857000,-500.0,0.00034999,2]
[421667772,1778035857000,-394.324,0.00034956,40]
[421667770,1778035857000,-773.46239503,0.0003488,120]
[421667769,1778035857000,-4000.0,0.00034795,60]
[421667771,1778035857000,-3653.725,0.00034956,40]
[421667774,1778035857000,-500.0,0.00034999,2]
[421667773,1778035857000,-951.07984931,0.00034977,120]
[421667764,1778035857000,-176.10209319,0.0003452,120]
[421667768,1778035857000,-1500.0,0.00034795,2]
[421667857,1778035858000,-500.0,0.00035616,7]
[421667851,1778035858000,-500.0,0.00035616,7]
[421667853,1778035858000,-500.0,0.00035616,7]
[421667852,1778035858000,-500.0,0.00035616,7]
[421667849,1778035858000,-500.0,0.00035616,7]
[421667850,1778035858000,-550.0,0.00035616,7]
[421667842,1778035858000,-500.0,0.00035616,5]
[421667847,1778035858000,-500.0,0.00035616,7]
[421667844,1778035858000,-500.0,0.00035616,7]
[421667843,1778035858000,-500.0,0.00035616,7]
[421667841,1778035858000,-500.0,0.00035616,5]
[421667854,1778035858000,-500.0,0.00035616,7]
[421667848,1778035858000,-500.0,0.00035616,7]
[421667855,1778035858000,-500.0,0.00035616,7]
[421667864,1778035858000,-150.0,0.00035899,2]
[421667859,1778035858000,-500.0,0.00035616,7]
[421667870,1778035858000,-6726.50340421,0.00036,120]
[421667858,1778035858000,-500.0,0.00035616,7]
[421667871,1778035858000,-5753.72912657,0.00036,120]
[421667863,1778035858000,-4000.0,0.0003589,60]
[421667867,1778035858000,-645.96735422,0.00036,120]
[421667868,1778035858000,-274.95850481,0.00036,120]
[421667861,1778035858000,-265.0,0.00035616,30]
[421667866,1778035858000,-465.45073713,0.00036,120]
[421667869,1778035858000,-312.00772031,0.00036,120]
[421667860,1778035858000,-356.97,0.00035616,2]
[421667865,1778035858000,-506.0,0.00035947,11]
[421667845,1778035858000,-500.0,0.00035616,7]
[421667856,1778035858000,-500.0,0.00035616,7]
[421667839,1778035858000,-707.3915,0.00035606,120]
[421667810,1778035858000,-1291.071661,0.00035,7]
[421667837,1778035858000,-623.0,0.0003553,30]
[421667862,1778035858000,-515.45,0.000358,30]
[421667811,1778035858000,-1291.071661,0.00035,7]
[421667812,1778035858000,-6866.4880527,0.00035037,2]
[421667815,1778035858000,-11908.0,0.00035039,2]
[421667816,1778035858000,-4000.0,0.00035068,60]
[421667813,1778035858000,-5000.0,0.00035037,2]
[421667814,1778035858000,-5000.0,0.00035037,2]
[421667824,1778035858000,-394.0,0.00035315,30]
[421667823,1778035858000,-305.0,0.00035315,30]
[421667822,1778035858000,-177.0,0.00035315,30]
[421667818,1778035858000,-178.21,0.0003514,60]
[421667819,1778035858000,-506.0,0.00035147,10]
[421667817,1778035858000,-158.63990247,0.00035068,30]
[421667838,1778035858000,-707.3915,0.00035606,120]
[421667820,1778035858000,-1500.0,0.000353,7]
[421667826,1778035858000,-150.0,0.00035315,120]
[421667825,1778035858000,-1179.0,0.00035315,30]
[421667827,1778035858000,-385.0,0.00035318,30]
[421667828,1778035858000,-153.0,0.00035318,30]
[421667829,1778035858000,-536.0,0.00035318,30]
[421667833,1778035858000,-160.0,0.000354,58]
[421667830,1778035858000,-198.0,0.00035318,30]
[421667832,1778035858000,-4000.0,0.00035342,60]
[421667831,1778035858000,-202.0,0.00035318,30]
[421667834,1778035858000,-2127.42212672,0.0003549,120]
[421667835,1778035858000,-15847.2472871,0.0003549,120]
[421667846,1778035858000,-500.0,0.00035616,7]
[421667836,1778035858000,-631.75654827,0.0003549,120]
[421667821,1778035858000,-395.0,0.00035315,30]
[421667872,1778035858000,-1181.11329958,0.00036,120]
[421667840,1778035858000,-4000.0,0.00035616,60]
[421667874,1778035858000,-4000.0,0.00036164,60]
[421667911,1778035858000,-151.0,0.000369,7]
[421667909,1778035858000,-151.0,0.000369,7]
[421667906,1778035858000,-162.249416,0.000369,7]
[421667908,1778035858000,-162.249416,0.000369,7]
[421667905,1778035858000,-162.249416,0.000369,7]
[421667907,1778035858000,-162.249416,0.000369,7]
[421667925,1778035858000,-395.0,0.00037315,30]
[421667914,1778035858000,-384.63382356,0.00036945,2]
[421667913,1778035858000,-151.0,0.000369,7]
[421667924,1778035858000,-515.45,0.000373,30]
[421667926,1778035858000,-177.0,0.00037315,30]
[421667915,1778035858000,-851.8,0.00036986,60]
[421667916,1778035858000,-4500.0,0.00037,2]
[421667904,1778035858000,-78194.19,0.000369,7]
[421667917,1778035858000,-461.9,0.00037042,2]
[421667918,1778035858000,-500.0,0.00037077,30]
[421667921,1778035858000,-6726.50340421,0.000371,120]
[421667922,1778035858000,-5753.72912657,0.000371,120]
[421667923,1778035858000,-305.09424946,0.0003726,5]
[421667920,1778035858000,-219.33,0.00037077,30]
[421667927,1778035858000,-305.0,0.00037315,30]
[421667929,1778035858000,-1179.0,0.00037315,30]
[421667930,1778035858000,-385.0,0.00037318,30]
[421667931,1778035858000,-153.0,0.00037318,30]
[421667933,1778035858000,-198.0,0.00037318,30]
[421667928,1778035858000,-394.0,0.00037315,30]
[421667932,1778035858000,-536.0,0.00037318,30]
[421667873,1778035858000,-2414.6,0.00036153,30]
[421667919,1778035858000,-500.0,0.00037077,30]
[421667900,1778035858000,-4000.0,0.00036712,60]
[421667934,1778035858000,-202.0,0.00037318,30]
[421667903,1778035858000,-506.0,0.00036748,12]
[421667935,1778035858000,-160.0,0.000374,65]
[421667875,1778035858000,-9282.0,0.00036164,2]
[421667880,1778035858000,-394.0,0.00036315,30]
[421667876,1778035858000,-336.70213556,0.00036307,2]
[421667877,1778035858000,-395.0,0.00036315,30]
[421667882,1778035858000,-385.0,0.00036318,30]
[421667881,1778035858000,-1179.0,0.00036315,30]
[421667878,1778035858000,-177.0,0.00036315,30]
[421667884,1778035858000,-536.0,0.00036318,30]
[421667885,1778035858000,-198.0,0.00036318,30]
[421667879,1778035858000,-305.0,0.00036315,30]
[421667887,1778035858000,-160.0,0.000364,61]
[421667886,1778035858000,-202.0,0.00036318,30]
[421667895,1778035858000,-13329.07,0.000367,5]
[421667883,1778035858000,-153.0,0.00036318,30]
[421667893,1778035858000,-1000.0,0.00036438,5]
[421667898,1778035858000,-166.702792,0.000367,7]
[421667902,1778035858000,-1000.0,0.00036712,5]
[421667912,1778035858000,-151.0,0.000369,7]
[421667901,1778035858000,-158.63990247,0.00036712,30]
[421667899,1778035858000,-157.0,0.000367,3]
[421667888,1778035858000,-3536.0,0.00036425,2]
[421667910,1778035858000,-151.0,0.000369,7]
[421667897,1778035858000,-166.702792,0.000367,7]
[421667891,1778035858000,-1221.0,0.00036425,2]
[421667896,1778035858000,-166.702792,0.000367,7]
[421667892,1778035858000,-4000.0,0.00036438,60]
[421667889,1778035858000,-624.0,0.00036425,2]
[421667890,1778035858000,-1352.0,0.00036425,2]
[421667894,1778035858000,-1436.07393916,0.00036612,2]
[421667973,1778035859000,-1000.0,0.000378,7]
[421667975,1778035859000,-1000.0,0.000378,7]
[421667977,1778035859000,-1000.0,0.000378,7]
[421667984,1778035859000,-1000.0,0.000378,7]
[421667969,1778035859000,-1000.0,0.000378,7]
[421667974,1778035859000,-1000.0,0.000378,7]
[421667967,1778035859000,-1000.0,0.000378,7]
[421667968,1778035859000,-1000.0,0.000378,7]
[421667978,1778035859000,-1000.0,0.000378,7]
[421667966,1778035859000,-1000.0,0.000378,7]
[421667985,1778035859000,-1000.0,0.000378,7]
[421667970,1778035859000,-1000.0,0.000378,7]
[421667987,1778035859000,-1000.0,0.000378,7]
[421667976,1778035859000,-1000.0,0.000378,7]
[421667982,1778035859000,-1000.0,0.000378,7]
[421667980,1778035859000,-1000.0,0.000378,7]
[421667981,1778035859000,-1000.0,0.000378,7]
[421667983,1778035859000,-1000.0,0.000378,7]
[421667997,1778035859000,-1000.0,0.000378,7]
[421667995,1778035859000,-1000.0,0.000378,7]
[421667990,1778035859000,-1000.0,0.000378,7]
[421667998,1778035859000,-1000.0,0.000378,7]
[421667993,1778035859000,-1000.0,0.000378,7]
[421667988,1778035859000,-1000.0,0.000378,7]
[421667963,1778035859000,-1000.0,0.000378,7]
[421667991,1778035859000,-1000.0,0.000378,7]
[421667979,1778035859000,-1000.0,0.000378,7]
[421667965,1778035859000,-1000.0,0.000378,7]
[421667940,1778035859000,-200.0,0.00037792,6]
[421667964,1778035859000,-1070.0,0.000378,7]
[421667986,1778035859000,-1000.0,0.000378,7]
[421667939,1778035859000,-461.9,0.00037783,2]
[421667938,1778035859000,-150.0,0.00037694,2]
[421667936,1778035859000,-461.9,0.00037413,2]
[421667941,1778035859000,-200.0,0.00037794,6]
[421667951,1778035859000,-1000.0,0.000378,7]
[421667952,1778035859000,-1000.0,0.000378,7]
[421667953,1778035859000,-1000.0,0.000378,7]
[421667946,1778035859000,-1000.0,0.000378,7]
[421667945,1778035859000,-1000.0,0.000378,7]
[421667947,1778035859000,-1000.0,0.000378,7]
[421667950,1778035859000,-1000.0,0.000378,7]
[421667943,1778035859000,-1000.0,0.000378,7]
[421667942,1778035859000,-1000.0,0.000378,7]
[421667944,1778035859000,-1000.0,0.000378,7]
[421667949,1778035859000,-1000.0,0.000378,7]
[421667948,1778035859000,-1000.0,0.000378,7]
[421667955,1778035859000,-1000.0,0.000378,7]
[421667954,1778035859000,-1000.0,0.000378,7]
[421667956,1778035859000,-1000.0,0.000378,7]
[421667959,1778035859000,-1000.0,0.000378,7]
[421667957,1778035859000,-1000.0,0.000378,7]
[421667958,1778035859000,-1000.0,0.000378,7]
[421667961,1778035859000,-1000.0,0.000378,7]
[421667960,1778035859000,-1000.0,0.000378,7]
[421667962,1778035859000,-1000.0,0.000378,7]
[421667972,1778035859000,-1000.0,0.000378,7]
[421667971,1778035859000,-1000.0,0.000378,7]
[421667989,1778035859000,-1000.0,0.000378,7]
[421667937,1778035859000,-506.0,0.00037549,13]
[421667994,1778035859000,-1000.0,0.000378,7]
[421668029,1778035859000,-1000.0,0.000378,7]
[421668036,1778035859000,-2414.6,0.00038125,30]
[421668025,1778035859000,-1000.0,0.000378,7]
[421668033,1778035859000,-5147.53922555,0.0003789,7]
[421668030,1778035859000,-1000.0,0.000378,7]
[421668026,1778035859000,-1000.0,0.000378,7]
[421668028,1778035859000,-1000.0,0.000378,7]
[421668037,1778035859000,-461.9,0.00038154,2]
[421668038,1778035859000,-417.0,0.00038164,90]
[421668039,1778035859000,-417.0,0.00038164,90]
[421668041,1778035859000,-417.0,0.00038164,90]
[421668044,1778035859000,-417.0,0.00038164,90]
[421668046,1778035859000,-417.0,0.00038164,90]
[421668040,1778035859000,-417.0,0.00038164,90]
[421668042,1778035859000,-417.0,0.00038164,90]
[421668047,1778035859000,-417.0,0.00038164,90]
[421668043,1778035859000,-417.0,0.00038164,90]
[421668048,1778035859000,-417.0,0.00038164,90]
[421668045,1778035859000,-417.0,0.00038164,90]
[421668050,1778035859000,-417.0,0.00038164,90]
[421668052,1778035859000,-417.0,0.00038164,90]
[421668049,1778035859000,-417.0,0.00038164,90]
[421668051,1778035859000,-417.0,0.00038164,90]
[421668056,1778035859000,-453.0,0.00038192,90]
[421668053,1778035859000,-417.0,0.00038164,90]
[421668055,1778035859000,-453.0,0.00038192,90]
[421668054,1778035859000,-214470.24876698,0.00038191,4]
[421668034,1778035859000,-4000.0,0.00038,60]
[421668035,1778035859000,-538.9366409,0.000381,33]
[421667992,1778035859000,-1000.0,0.000378,7]
[421668023,1778035859000,-1000.0,0.000378,7]
[421668027,1778035859000,-1000.0,0.000378,7]
[421667996,1778035859000,-1000.0,0.000378,7]
[421668000,1778035859000,-1000.0,0.000378,7]
[421667999,1778035859000,-1000.0,0.000378,7]
[421668010,1778035859000,-1000.0,0.000378,7]
[421668001,1778035859000,-1000.0,0.000378,7]